bitfinex-derivatives/quotes_BTCF0:USTF0_20241015
["timestamp","ask_amount","ask_price","bid_price","bid_amount"]
[1728982503294,0.03138031,65770.0,65769.0,0.440857]
[1728982505295,0.03138031,65770.0,65769.0,0.560857]
[1728982506199,0.03137888,65770.0,65769.0,0.560857]
[1728982506907,0.002,65770.0,65769.0,0.80189488]
[1728982509902,0.076053,65774.0,65773.0,0.076053]
[1728982510103,0.076053,65774.0,65773.0,0.31749088]
[1728982510505,1.576053,65774.0,65773.0,0.31749088]
[1728982511407,1.577053,65774.0,65773.0,0.31849088]
[1728982512309,1.578053,65774.0,65773.0,0.57911538]
[1728982513507,1.578053,65774.0,65773.0,0.4726594]
[1728982514902,1.56862367,65774.0,65773.0,0.079453]
[1728982516297,1.64467567,65774.0,65773.0,0.079453]
[1728982516503,1.64467567,65774.0,65773.0,0.03074216]
[1728982520412,1.69135866,65774.0,65773.0,0.03074216]
[1728982520716,1.69135841,65774.0,65773.0,0.03074216]
[1728982521406,1.60743064,65774.0,65773.0,0.03074216]
[1728982522016,1.578052,65774.0,65773.0,0.2709902]
[1728982524402,1.938852,65774.0,65773.0,0.2709902]
[1728982526910,0.438852,65774.0,65773.0,0.59554791]
[1728982527919,1.938852,65774.0,65773.0,0.59554791]
[1728982528317,1.938852,65774.0,65773.0,0.42274428]
[1728982529014,1.578052,65774.0,65773.0,0.59490568]
[1728982530017,1.56176973,65774.0,65773.0,0.03074216]
[1728982532909,1.52937904,65774.0,65773.0,0.22679516]
[1728982533110,0.02937904,65774.0,65773.0,0.22679516]
[1728982533813,0.3608,65781.0,65779.0,0.076045]
[1728982533814,0.436844,65781.0,65779.0,0.076045]
[1728982534020,0.02937742,65780.0,65779.0,0.076045]
[1728982534222,0.10542242,65780.0,65779.0,0.196045]
[1728982535023,0.10542242,65780.0,65779.0,0.198045]
[1728982535518,0.10542242,65780.0,65779.0,0.200045]
[1728982536115,0.10542242,65780.0,65779.0,0.004]
[1728982537023,0.076045,65780.0,65779.0,0.24229782]
[1728982539427,0.076045,65780.0,65779.0,0.31834382]
[1728982540129,0.076045,65780.0,65779.0,0.3183376]
[1728982544431,0.03799608,65780.0,65779.0,0.3183376]
[1728982544928,0.34552759,65781.0,65779.0,0.18875757]
[1728982545229,0.42157159,65781.0,65780.0,0.20037706]
[1728982545933,0.076044,65781.0,65780.0,0.20037706]
[1728982546135,0.076044,65781.0,65780.0,0.27642206]
[1728982546527,0.076044,65781.0,65780.0,0.27742206]
[1728982547231,0.076044,65781.0,65780.0,0.18615657]
[1728982547430,0.076044,65781.0,65780.0,0.27742206]
[1728982547628,0.076044,65781.0,65780.0,0.18615657]
[1728982547831,0.076044,65781.0,65780.0,0.18715657]
[1728982548032,0.076044,65781.0,65780.0,0.27842206]
[1728982548334,0.076044,65781.0,65780.0,0.18715657]
[1728982550431,0.076044,65781.0,65780.0,0.21501172]
[1728982551230,0.076044,65781.0,65780.0,0.30627721]
[1728982551926,0.24389203,65781.0,65780.0,0.19756564]
[1728982552128,0.24389203,65781.0,65776.0,0.12]
[1728982552337,0.076046,65779.0,65778.0,0.076047]
[1728982552528,0.18934734,65779.0,65778.0,0.076047]
[1728982554239,0.18934734,65779.0,65778.0,0.079047]
[1728982554937,0.18934736,65779.0,65778.0,0.081047]
[1728982556133,0.24389405,65779.0,65778.0,0.081047]
[1728982556536,0.16784805,65779.0,65778.0,0.201047]
[1728982556736,0.11330136,65779.0,65778.0,0.201047]
[1728982559941,0.08392403,65779.0,65778.0,0.33073247]
[1728982560237,0.436843,65782.0,65781.0,0.076044]
[1728982560440,0.436843,65782.0,65781.0,0.31449312]
[1728982560628,0.436843,65782.0,65781.0,0.31489312]
[1728982561530,0.437843,65782.0,65781.0,0.31489312]
[1728982566648,0.077043,65782.0,65781.0,0.31475369]
[1728982567148,0.14365975,65782.0,65781.0,0.076444]
[1728982567351,0.19033868,65782.0,65781.0,0.05036272]
[1728982568047,0.19034201,65782.0,65781.0,0.05036272]
[1728982570546,0.24488597,65782.0,65781.0,0.05036272]
[1728982575153,0.077043,65782.0,65781.0,0.28887039]
[1728982575450,0.077043,65782.0,65781.0,0.1592442]
[1728982575647,0.077043,65782.0,65781.0,0.2891045]
[1728982576446,0.077043,65782.0,65781.0,0.1592442]
[1728982576643,0.077043,65782.0,65781.0,0.28899636]
[1728982577751,0.077043,65782.0,65781.0,0.28897086]
[1728982578051,0.077043,65782.0,65781.0,0.1592187]
[1728982578451,0.077043,65782.0,65781.0,0.28901608]
[1728982579051,0.001,65782.0,65781.0,0.28901608]
[1728982580057,0.077043,65782.0,65781.0,0.28901608]
[1728982589458,0.03899716,65782.0,65781.0,0.28901608]
[1728982589661,0.076038,65786.0,65785.0,0.076039]
[1728982589858,0.3608,65787.0,65786.0,0.076038]
[1728982590055,0.52863261,65787.0,65786.0,0.196038]
[1728982590359,0.52863261,65787.0,65786.0,0.196438]
[1728982590870,0.47409093,65787.0,65786.0,0.196438]
[1728982591052,0.42741396,65787.0,65786.0,0.196438]
[1728982591248,0.50345096,65787.0,65786.0,0.196438]
[1728982591652,0.50945096,65787.0,65786.0,0.196438]
[1728982592347,0.447837,65787.0,65786.0,0.196438]
[1728982592653,0.51444912,65787.0,65786.0,0.196438]
[1728982593356,0.15364912,65787.0,65786.0,0.196438]
[1728982593550,0.12428775,65787.0,65786.0,0.196438]
[1728982594454,0.12427694,65787.0,65786.0,0.196438]
[1728982594963,0.11927694,65787.0,65786.0,0.22399683]
[1728982595161,0.12027694,65787.0,65786.0,0.22399683]
[1728982596065,0.14376617,65787.0,65786.0,0.22399683]
[1728982596259,0.2103719,65787.0,65786.0,0.22399683]
[1728982596464,0.25704311,65787.0,65786.0,0.22399683]
[1728982597062,0.007,65787.0,65786.0,0.45986734]
[1728982598065,0.21557749,65793.0,65786.0,0.45986734]
[1728982598066,0.21557749,65793.0,65786.0,1.51590734]
[1728982598264,0.21557749,65793.0,65792.0,0.076431]
[1728982598460,1.71557749,65793.0,65792.0,0.18402342]
[1728982599363,1.71957749,65793.0,65792.0,0.31192728]
[1728982599860,1.72257749,65793.0,65792.0,0.31192728]
[1728982600468,1.72957749,65793.0,65792.0,0.31292728]
[1728982600764,1.72957749,65793.0,65792.0,0.18502342]
[1728982601161,0.23457749,65793.0,65792.0,0.27702988]
[1728982601367,0.23457749,65793.0,65792.0,0.18602342]
[1728982601765,0.23457749,65793.0,65792.0,0.54682342]
[1728982601971,0.17147749,65793.0,65792.0,0.63736279]
[1728982603369,0.17147749,65793.0,65792.0,0.54635633]
[1728982605077,0.17147749,65793.0,65792.0,0.439231]
[1728982605264,0.200845,65793.0,65792.0,0.439231]
[1728982606576,0.23807531,65793.0,65792.0,0.439231]
[1728982606967,0.08599782,65793.0,65792.0,0.439231]
[1728982609376,0.0194,65793.0,65792.0,0.439231]
[1728982609879,0.13266353,65793.0,65792.0,0.439231]
[1728982610080,0.25266353,65793.0,65792.0,0.439231]
[1728982610279,0.13266353,65793.0,65792.0,0.439231]
[1728982612174,0.15193568,65794.0,65793.0,0.07603]
[1728982612374,0.15193568,65794.0,65793.0,0.31119643]
[1728982613680,0.15193568,65794.0,65793.0,0.31219643]
[1728982613882,0.16293568,65794.0,65793.0,0.31219643]
[1728982614183,0.16293568,65794.0,65793.0,0.31319643]
[1728982614382,0.17193568,65794.0,65793.0,0.31319643]
[1728982616583,0.17193568,65794.0,65793.0,0.07843]
[1728982616790,0.17193568,65794.0,65793.0,0.3130763]
[1728982617085,0.02,65794.0,65793.0,0.34090976]
[1728982620075,0.04936858,65794.0,65793.0,0.10626346]
[1728982627197,0.076026,65796.0,65795.0,0.076027]
[1728982627382,0.076026,65796.0,65795.0,0.45973201]
[1728982628284,0.076026,65796.0,65795.0,0.62866538]
[1728982628486,0.087026,65796.0,65795.0,0.62966538]
[1728982628980,0.087026,65796.0,65795.0,0.63066538]
[1728982629585,0.087026,65796.0,65795.0,0.21496252]
[1728982629787,0.01095317,65796.0,65795.0,0.63029405]
[1728982629979,0.08697917,65796.0,65795.0,0.63029405]
[1728982630783,0.01095317,65796.0,65795.0,0.63029405]
[1728982632102,0.04173382,65797.0,65795.0,0.55426705]
[1728982632398,0.04173382,65797.0,65796.0,0.76511187]
[1728982632793,1.54173382,65797.0,65796.0,0.62829305]
[1728982632994,1.54173382,65797.0,65796.0,0.76510769]
[1728982633397,1.54173382,65797.0,65796.0,0.62829305]
[1728982633593,1.54173382,65797.0,65796.0,0.62929305]
[1728982633897,1.54173382,65797.0,65796.0,0.76612057]
[1728982634493,1.54173382,65797.0,65796.0,0.76191116]
[1728982634796,1.54173382,65797.0,65796.0,0.76291116]
[1728982635006,1.54173382,65797.0,65796.0,0.62608364]
[1728982635214,1.54173382,65797.0,65796.0,0.31144194]
[1728982637603,1.5,65797.0,65796.0,0.31144194]
[1728982637790,0.0674,65800.0,65799.0,0.076023]
[1728982637989,0.0674,65800.0,65799.0,0.18232775]
[1728982638287,1.5674,65800.0,65799.0,0.18232775]
[1728982638486,1.5674,65800.0,65799.0,0.18272775]
[1728982639093,0.0004,65800.0,65799.0,0.18272775]
[1728982639395,0.0004,65800.0,65799.0,0.31031405]
[1728982639601,0.0004,65800.0,65799.0,0.37441405]
[1728982640595,0.0004,65800.0,65799.0,0.37541405]
[1728982642302,0.0004,65800.0,65799.0,0.142523]
[1728982642699,0.0004,65800.0,65799.0,0.262523]
[1728982642700,0.06743532,65800.0,65799.0,0.262523]
[1728982644797,0.06743532,65800.0,65799.0,0.198423]
[1728982648999,0.11409879,65800.0,65799.0,0.198423]
[1728982650311,0.34805006,65804.0,65799.0,0.46089642]
[1728982650605,0.076019,65803.0,65802.0,0.076018]
[1728982650797,0.076019,65803.0,65802.0,0.30809153]
[1728982651003,1.576019,65803.0,65802.0,0.30809153]
[1728982651307,1.936819,65803.0,65802.0,0.30809153]
[1728982651610,1.936819,65803.0,65802.0,0.10594013]
[1728982651902,2.006419,65803.0,65802.0,0.10694013]
[1728982652701,2.006419,65803.0,65802.0,0.19802064]
[1728982653406,2.006419,65803.0,65802.0,0.10794013]
[1728982653797,2.006419,65803.0,65802.0,0.19902575]
[1728982655406,0.0004,65800.0,65793.0,0.0004]
[1728982655607,0.316028,65794.0,65793.0,0.0004]
[1728982656307,1.816028,65794.0,65793.0,0.0004]
[1728982656807,1.816028,65794.0,65793.0,0.0014]
[1728982657310,1.93179453,65794.0,65793.0,0.0014]
[1728982657893,1.93279453,65794.0,65793.0,0.0024]
[1728982658101,1.93279453,65794.0,65784.0,0.3262]
[1728982658102,0.076041,65783.0,65777.0,0.076047]
[1728982658305,0.076042,65782.0,65779.0,0.02721644]
[1728982658499,0.39723365,65782.0,65779.0,0.02721644]
[1728982659099,0.27723365,65782.0,65779.0,0.02721644]
[1728982659505,0.39723365,65782.0,65779.0,0.02721644]
[1728982660201,0.39723365,65782.0,65781.0,0.0044]
[1728982660702,0.23999599,65782.0,65781.0,0.0074]
[1728982660900,0.35999599,65782.0,65781.0,0.0074]
[1728982661511,0.23999599,65782.0,65781.0,0.0074]
[1728982662505,0.35999599,65782.0,65781.0,0.0074]
[1728982663015,0.23999599,65782.0,65781.0,0.0074]
[1728982663411,0.35924486,65782.0,65781.0,0.0074]
[1728982664006,0.60004486,65782.0,65781.0,0.0074]
[1728982664312,0.72004486,65782.0,65781.0,0.0074]
[1728982665205,0.688942,65782.0,65781.0,0.0074]
[1728982665406,0.328142,65782.0,65781.0,0.0074]
[1728982665612,0.688942,65782.0,65781.0,0.0074]
[1728982671621,0.568942,65782.0,65781.0,0.0074]
[1728982671826,0.688942,65782.0,65781.0,0.0074]
[1728982674020,0.328142,65782.0,65781.0,0.0074]
[1728982674214,0.688942,65782.0,65781.0,0.0074]
[1728982675222,0.688942,65782.0,65781.0,0.08332855]
[1728982675427,0.328142,65782.0,65781.0,0.08332855]
[1728982675626,0.688942,65782.0,65781.0,0.08332855]
[1728982676223,0.688942,65782.0,65781.0,0.18774098]
[1728982677323,0.688942,65782.0,65781.0,0.11181243]
[1728982678218,0.6432828,65782.0,65781.0,0.11181243]
[1728982678424,0.6129,65782.0,65781.0,0.11181243]
[1728982678626,0.688942,65782.0,65781.0,0.11181243]
[1728982678918,0.688942,65782.0,65781.0,0.18756257]
[1728982679116,1.864982,65782.0,65779.0,0.07575014]
[1728982679327,1.864982,65782.0,65771.0,0.10143909]
[1728982679328,0.076054,65772.0,65771.0,0.10143909]
[1728982679526,0.076054,65772.0,65771.0,0.17995475]
[1728982680132,1.576054,65772.0,65771.0,0.17995475]
[1728982680432,1.5,65772.0,65771.0,0.10303129]
[1728982680938,1.576054,65772.0,65771.0,0.10303129]
[1728982681333,1.576054,65772.0,65771.0,0.11603129]
[1728982681633,1.576054,65772.0,65771.0,0.12903129]
[1728982681822,1.576054,65772.0,65771.0,0.05297629]
[1728982682327,1.60851106,65772.0,65771.0,0.05297629]
[1728982685724,1.60851106,65772.0,65771.0,0.026]
[1728982685930,1.60851106,65772.0,65763.0,0.1325]
[1728982685931,0.076063,65764.0,65763.0,0.212064]
[1728982686233,0.196063,65764.0,65763.0,0.23646002]
[1728982686437,0.22815993,65764.0,65763.0,0.23646002]
[1728982687235,0.196063,65764.0,65763.0,0.62238238]
[1728982687427,0.12,65764.0,65763.0,0.63638238]
[1728982687932,0.196063,65764.0,65763.0,0.63638238]
[1728982688234,0.196063,65764.0,65763.0,0.75800854]
[1728982688443,0.196063,65764.0,65763.0,0.63638238]
[1728982689131,0.196063,65764.0,65763.0,0.75800854]
[1728982689332,0.196063,65764.0,65763.0,0.63638238]
[1728982689634,0.12,65764.0,65763.0,0.63638238]
[1728982690039,0.12,65764.0,65763.0,0.75800854]
[1728982690529,0.12,65764.0,65763.0,0.63638238]
[1728982690736,0.001,65764.0,65763.0,0.63638238]
[1728982690939,0.12,65776.0,65772.0,0.076054]
[1728982691131,0.3608,65773.0,65772.0,0.30342109]
[1728982691326,1.5,65778.0,65772.0,0.30342109]
[1728982691525,1.5,65778.0,65777.0,0.076448]
[1728982691837,1.62,65778.0,65777.0,0.30341509]
[1728982692136,1.5,65778.0,65777.0,0.30341509]
[1728982693933,1.501,65778.0,65777.0,0.30941509]
[1728982694139,1.502,65778.0,65777.0,0.31641509]
[1728982695343,0.002,65778.0,65777.0,0.450248]
[1728982695642,0.002,65778.0,65777.0,0.47750994]
[1728982702340,0.002,65778.0,65777.0,0.70272368]
[1728982704842,0.002,65778.0,65777.0,0.34192368]
[1728982706036,0.0004,65782.0,65781.0,0.076044]
[1728982706239,0.0004,65782.0,65781.0,0.42165774]
[1728982707448,0.0004,65782.0,65781.0,0.42665774]
[1728982710146,0.0004,65782.0,65781.0,0.42661377]
[1728982710345,0.437238,65786.0,65785.0,0.076039]
[1728982710543,0.47108909,65786.0,65785.0,0.076039]
[1728982710744,0.47108909,65786.0,65785.0,0.076439]
[1728982711337,1.97108909,65786.0,65785.0,0.076439]
[1728982711544,1.97308909,65786.0,65785.0,0.076439]
[1728982712044,1.97408909,65786.0,65785.0,0.076439]
[1728982714934,1.97408892,65786.0,65785.0,0.076439]
[1728982716047,1.97408892,65786.0,65785.0,0.10442946]
[1728982717452,1.940238,65786.0,65785.0,0.3293872]
[1728982718849,1.8642,65786.0,65785.0,0.3293872]
[1728982719044,0.3642,65786.0,65785.0,0.3293872]
[1728982720447,0.3642,65786.0,65785.0,0.47133621]
[1728982722452,0.0034,65786.0,65785.0,0.47133621]
[1728982722945,1.5004,65787.0,65785.0,0.47133621]
[1728982723143,1.5004,65787.0,65786.0,0.56334475]
[1728982724151,0.0004,65787.0,65786.0,0.56334475]
[1728982724546,0.0044,65787.0,65786.0,0.56334475]
[1728982724747,0.0044,65787.0,65786.0,0.44334475]
[1728982724951,0.0014,65787.0,65786.0,0.56334475]
[1728982725147,0.0044,65787.0,65786.0,0.56334475]
[1728982725347,0.0064,65787.0,65786.0,0.56334475]
[1728982725959,0.0683,65789.0,65786.0,0.48730675]
[1728982726144,0.0683,65789.0,65788.0,0.076435]
[1728982726351,0.0683,65789.0,65788.0,0.44334175]
[1728982726858,0.3608,65791.0,65790.0,0.076033]
[1728982727154,0.0004,65793.0,65790.0,0.9544542]
[1728982727360,0.0004,65793.0,65792.0,0.076431]
[1728982727554,0.0004,65793.0,65792.0,0.44333775]
[1728982728564,0.0004,65793.0,65792.0,0.44433775]
[1728982728565,0.0094,65793.0,65792.0,0.44433775]
[1728982729457,0.0094,65793.0,65792.0,0.44065224]
[1728982730460,0.0094,65793.0,65792.0,0.40632535]
[1728982730653,0.0094,65793.0,65792.0,0.30007995]
[1728982730854,0.0164,65793.0,65792.0,0.30107995]
[1728982731358,0.0164,65793.0,65792.0,0.32839795]
[1728982731359,0.21243,65793.0,65792.0,0.32839795]
[1728982732358,0.33377711,65793.0,65792.0,0.105749]
[1728982732558,0.33377711,65793.0,65792.0,0.02966728]
[1728982732955,0.33377711,65793.0,65792.0,0.10569828]
[1728982734363,0.21243,65793.0,65792.0,0.10569828]
[1728982734556,0.33232957,65793.0,65792.0,0.10569828]
[1728982735160,0.21232957,65793.0,65792.0,0.02966728]
[1728982735556,0.36414002,65793.0,65792.0,0.02966728]
[1728982735866,1.71232957,65793.0,65792.0,0.10569828]
[1728982736067,1.71232957,65793.0,65792.0,0.02966728]
[1728982737467,1.71232957,65793.0,65792.0,0.10569828]
[1728982739262,1.71208242,65793.0,65792.0,0.10569828]
[1728982739460,1.59243,65793.0,65792.0,0.33025558]
[1728982739658,1.95323,65793.0,65792.0,0.33025558]
[1728982740363,1.89997102,65793.0,65792.0,0.33025558]
[1728982742368,1.53917102,65793.0,65792.0,0.33025558]
[1728982742570,1.89997102,65793.0,65792.0,0.33025558]
[1728982742865,1.89997102,65793.0,65792.0,0.19455031]
[1728982743067,1.89997102,65793.0,65790.0,0.0004]
[1728982743068,0.076032,65791.0,65790.0,0.0004]
[1728982743367,0.076032,65791.0,65786.0,0.0004]
[1728982743368,0.076037,65787.0,65786.0,0.0004]
[1728982743570,0.076038,65786.0,65780.0,0.0035]
[1728982743763,0.076038,65786.0,65781.0,0.076443]
[1728982743764,2.168178,65786.0,65781.0,0.076443]
[1728982743963,2.768178,65786.0,65781.0,0.076443]
[1728982744263,0.076042,65782.0,65781.0,0.0004]
[1728982744573,0.316042,65782.0,65781.0,0.0004]
[1728982744870,1.816042,65782.0,65781.0,0.0004]
[1728982745468,1.816042,65782.0,65777.0,0.0004]
[1728982745769,0.556847,65778.0,65777.0,0.0004]
[1728982745968,0.676847,65778.0,65777.0,0.0004]
[1728982746175,0.676847,65778.0,65772.0,0.0004]
[1728982746176,0.196053,65773.0,65772.0,0.0004]
[1728982746375,0.196053,65773.0,65768.0,0.076058]
[1728982746570,0.556857,65769.0,65768.0,0.076058]
[1728982747174,0.436857,65769.0,65768.0,0.076058]
[1728982747580,0.436857,65769.0,65768.0,0.090058]
[1728982748575,0.436857,65769.0,65768.0,0.104058]
[1728982749169,0.556857,65769.0,65768.0,0.028]
[1728982749674,0.502457,65769.0,65768.0,0.028]
[1728982749977,0.622457,65769.0,65768.0,0.104059]
[1728982751276,0.502457,65769.0,65768.0,0.104059]
[1728982751678,0.4264,65769.0,65768.0,0.104059]
[1728982752277,0.3608,65769.0,65768.0,0.104059]
[1728982752579,0.3608,65776.0,65775.0,0.07605]
[1728982752777,0.3608,65776.0,65775.0,0.19645]
[1728982753782,0.3608,65776.0,65775.0,0.20545]
[1728982753970,0.3608,65776.0,65775.0,0.21445]
[1728982755988,0.436849,65777.0,65776.0,0.076049]
[1728982756282,0.436849,65777.0,65776.0,0.076449]
[1728982757077,0.31513859,65777.0,65776.0,0.15229032]
[1728982757279,0.31513859,65777.0,65776.0,0.076449]
[1728982757474,0.31513859,65777.0,65776.0,0.084449]
[1728982757677,0.31513859,65777.0,65776.0,0.092449]
[1728982757870,0.31513859,65777.0,65776.0,0.26204004]
[1728982758075,0.31513859,65777.0,65776.0,0.32684004]
[1728982758276,0.076044,65781.0,65780.0,0.076045]
[1728982758582,1.576042,65782.0,65781.0,0.076044]
[1728982758777,1.576042,65782.0,65781.0,0.29753504]
[1728982758778,1.5,65782.0,65781.0,0.29753504]
[1728982759579,1.5,65782.0,65781.0,0.17753504]
[1728982760378,1.5,65782.0,65781.0,0.18053504]
[1728982760987,1.576042,65782.0,65781.0,0.18053504]
[1728982761583,1.576042,65782.0,65781.0,0.18312226]
[1728982761886,1.576042,65782.0,65781.0,0.10707826]
[1728982762082,1.576042,65782.0,65781.0,0.18280667]
[1728982762888,1.576042,65782.0,65781.0,0.0064]
[1728982763884,1.936842,65782.0,65781.0,0.0064]
[1728982764479,1.936842,65782.0,65781.0,0.08212841]
[1728982764679,1.576042,65782.0,65781.0,0.08212841]
[1728982764881,1.936842,65782.0,65781.0,0.08212841]
[1728982765286,1.936842,65782.0,65781.0,0.18313473]
[1728982766280,1.936842,65782.0,65781.0,0.10740632]
[1728982766482,1.936842,65782.0,65781.0,0.1074361]
[1728982769693,1.97205372,65782.0,65781.0,0.0064]
[1728982769990,1.936842,65782.0,65781.0,0.0064]
[1728982770378,1.97205384,65782.0,65781.0,0.0064]
[1728982771292,1.61125384,65782.0,65781.0,0.0064]
[1728982771488,1.97205384,65782.0,65781.0,0.0064]
[1728982772482,1.97205384,65782.0,65781.0,0.082444]
[1728982775182,1.61125384,65782.0,65781.0,0.082444]
[1728982775386,1.97205384,65782.0,65781.0,0.082444]
[1728982775788,1.97210308,65782.0,65781.0,0.082444]
[1728982775992,1.936842,65782.0,65781.0,0.082444]
[1728982776705,1.576042,65782.0,65781.0,0.082444]
[1728982776887,1.936842,65782.0,65781.0,0.082444]
[1728982777088,1.576042,65782.0,65781.0,0.082444]
[1728982777289,1.97211194,65782.0,65781.0,0.082444]
[1728982777488,1.97211194,65782.0,65781.0,0.18363239]
[1728982777489,1.936842,65782.0,65781.0,0.18363239]
[1728982777788,0.436842,65782.0,65781.0,0.18363239]
[1728982777987,0.076042,65782.0,65781.0,0.18363239]
[1728982778196,0.436842,65782.0,65781.0,0.18363239]
[1728982778590,1.936842,65782.0,65781.0,0.18363239]
[1728982779398,1.936842,65782.0,65781.0,0.3038305]
[1728982779994,1.576042,65782.0,65781.0,0.3038305]
[1728982780196,1.936842,65782.0,65781.0,0.3038305]
[1728982782701,1.576042,65782.0,65781.0,0.3038305]
[1728982782902,1.936842,65782.0,65781.0,0.3038305]
[1728982783901,1.576042,65782.0,65781.0,0.30396116]
[1728982784502,1.61198317,65782.0,65781.0,0.082444]
[1728982785399,1.53594117,65782.0,65781.0,0.082444]
[1728982786306,0.07794318,65782.0,65781.0,0.082444]
[1728982786701,0.07794318,65782.0,65781.0,0.152944]
[1728982787199,0.0360673,65782.0,65781.0,0.152944]
[1728982788403,0.0035,65788.0,65787.0,0.076037]
[1728982788703,0.03634412,65788.0,65787.0,0.076037]
[1728982789299,0.03634412,65788.0,65787.0,0.076437]
[1728982789708,0.03934412,65788.0,65787.0,0.076437]
[1728982789922,0.003,65788.0,65787.0,0.076437]
[1728982790095,0.04268792,65788.0,65787.0,0.076437]
[1728982790407,0.006,65788.0,65787.0,0.076437]
[1728982791199,0.006,65788.0,65787.0,0.10424431]
[1728982792300,0.006,65788.0,65787.0,1.16024431]
[1728982792707,1.5,65793.0,65792.0,0.196031]
[1728982792907,1.5,65793.0,65792.0,0.41534392]
[1728982793207,0.3612,65796.0,65793.0,0.07603]
[1728982793406,0.3612,65796.0,65793.0,0.29534292]
[1728982793711,0.3612,65796.0,65793.0,0.24460078]
[1728982794803,0.0044,65794.0,65793.0,0.24560078]
[1728982795499,0.0054,65794.0,65793.0,0.24660078]
[1728982795700,0.0054,65794.0,65793.0,0.36538798]
[1728982796498,0.0054,65794.0,65793.0,0.94134798]
[1728982796699,0.0054,65794.0,65793.0,0.82134798]
[1728982798914,0.0054,65794.0,65793.0,0.94134798]
[1728982799409,0.0054,65794.0,65793.0,0.82134798]
[1728982799610,0.0054,65794.0,65793.0,0.8414772]
[1728982799815,0.04837207,65794.0,65793.0,0.52662009]
[1728982799999,0.08538355,65794.0,65793.0,0.52662009]
[1728982800407,0.08538355,65794.0,65793.0,0.60265009]
[1728982800615,0.08538355,65794.0,65793.0,0.72265009]
[1728982800916,0.08538355,65794.0,65793.0,0.60265009]
[1728982802114,0.0004,65800.0,65793.0,1.68345009]
[1728982802315,0.0004,65800.0,65799.0,0.557223]
[1728982803514,0.0024,65800.0,65799.0,0.558223]
[1728982804817,0.0014,65800.0,65799.0,0.558223]
[1728982805110,0.0014,65800.0,65799.0,0.559223]
[1728982806513,0.0004,65800.0,65799.0,0.557223]
[1728982806709,0.0004,65800.0,65799.0,0.558223]
[1728982807720,0.1349,65808.0,65799.0,0.558223]
[1728982807914,0.210913,65808.0,65807.0,0.076413]
[1728982808212,0.1349,65808.0,65807.0,0.076413]
[1728982809023,0.210912,65808.0,65807.0,0.076413]
[1728982809614,0.1349,65808.0,65807.0,0.076413]
[1728982810016,0.1349,65808.0,65807.0,0.12182776]
[1728982810416,0.1349,65808.0,65807.0,0.076413]
[1728982810617,0.079503,65817.0,65807.0,0.0004]
[1728982810618,0.0035,65817.0,65807.0,0.0004]
[1728982810817,0.3608,65825.0,65807.0,0.0004]
[1728982810818,1.5,65815.0,65814.0,0.196405]
[1728982811023,0.1427,65816.0,65815.0,0.076004]
[1728982811223,0.1427,65816.0,65815.0,0.196404]
[1728982811417,1.6427,65816.0,65815.0,0.196404]
[1728982811620,1.6427,65816.0,65815.0,0.24694765]
[1728982811824,1.6427,65816.0,65815.0,0.196404]
[1728982812019,1.6427,65816.0,65815.0,0.25694765]
[1728982812220,0.1427,65816.0,65815.0,0.25694765]
[1728982813118,0.1427,65816.0,65815.0,0.25794765]
[1728982813319,0.1427,65816.0,65815.0,0.24894765]
[1728982813525,0.1427,65816.0,65815.0,0.188404]
[1728982814626,1.5,65821.0,65820.0,0.075998]
[1728982814824,1.5674,65821.0,65820.0,0.186398]
[1728982815018,1.643397,65821.0,65820.0,0.076398]
[1728982815828,1.643397,65821.0,65820.0,0.077398]
[1728982816123,1.643397,65821.0,65820.0,0.078398]
[1728982817522,1.5674,65821.0,65820.0,0.078398]
[1728982821125,1.643397,65821.0,65820.0,0.078398]
[1728982822717,1.68014144,65821.0,65820.0,0.078398]
[1728982823827,1.68014144,65821.0,65820.0,0.0024]
[1728982824026,0.076003,65816.0,65815.0,0.0004]
[1728982824230,0.11274744,65816.0,65815.0,0.0004]
[1728982824628,0.076005,65814.0,65797.0,0.1901]
[1728982824929,0.12,65811.0,65807.0,0.076413]
[1728982825131,0.46704444,65813.0,65807.0,0.076413]
[1728982825132,0.196012,65808.0,65807.0,0.076413]
[1728982825326,0.23275644,65808.0,65807.0,0.076413]
[1728982825822,0.23275644,65808.0,65807.0,0.10359864]
[1728982826222,0.23275644,65808.0,65807.0,0.10459864]
[1728982826629,0.23275644,65808.0,65807.0,0.10359864]
[1728982826827,0.23275644,65808.0,65807.0,0.10459864]
[1728982827236,0.12,65808.0,65807.0,0.10459864]
[1728982827432,0.07803928,65808.0,65807.0,0.22459864]
[1728982827637,0.03808736,65808.0,65807.0,0.58639864]
[1728982827929,0.002,65808.0,65807.0,0.57639864]
[1728982828332,0.002,65808.0,65807.0,0.58639864]
[1728982828721,0.002,65808.0,65807.0,0.46639864]
[1728982829933,0.5408,65819.0,65816.0,0.076003]
[1728982830140,0.076002,65817.0,65816.0,0.076003]
[1728982830433,0.076002,65817.0,65816.0,0.29467217]
[1728982831051,0.076002,65817.0,65816.0,0.21866917]
[1728982831224,0.076002,65817.0,65816.0,0.1906329]
[1728982831536,0.1027806,65817.0,65816.0,0.09975958]
[1728982831730,0.1037806,65817.0,65816.0,0.10075958]
[1728982831929,0.1037806,65817.0,65816.0,0.10056314]
[1728982832337,0.1037806,65817.0,65816.0,0.10156314]
[1728982835839,0.1037806,65817.0,65816.0,0.10158328]
[1728982836826,0.1037806,65817.0,65816.0,0.002]
[1728982837030,0.1037806,65817.0,65816.0,0.1016661]
[1728982837829,0.1037806,65817.0,65816.0,0.002]
[1728982838030,0.076008,65812.0,65807.0,0.0004]
[1728982838230,0.076008,65812.0,65799.0,0.0004]
[1728982838231,0.076022,65800.0,65799.0,0.0004]
[1728982838434,0.616822,65800.0,65799.0,0.0004]
[1728982838636,2.116822,65800.0,65799.0,0.0004]
[1728982839541,2.116822,65800.0,65799.0,0.0024]
[1728982841654,2.116822,65800.0,65799.0,0.0044]
[1728982842837,2.14436701,65800.0,65799.0,0.0044]
[1728982844747,0.64436701,65800.0,65799.0,0.0044]
[1728982847635,0.46436701,65800.0,65799.0,0.0044]
[1728982847835,0.56834501,65800.0,65799.0,0.0044]
[1728982848043,0.46436701,65800.0,65799.0,0.080423]